[Event "Late-Titled-Tuesday-Blitz-March-26-2024"]
[Site "Chess.com"]
[Date "2024.03.26"]
[Round "2"]
[White "IsuruAlahakoon"]
[Black "blank0923"]
[Result "0-1"]
[WhiteElo "2369"]
[BlackElo "2581"]
[TimeControl "180+1"]
[EndTime "14:18:58 PDT"]
[Termination "blank0923 won on time"]

1. Nf3 {[%clk 0:03:00.9]} 1... d5 {[%clk 0:02:57.1]} 2. e3 {[%clk 0:03:00.6]}
2... Bf5 {[%clk 0:02:57.2]} 3. c4 {[%clk 0:03:00]} 3... e6 {[%clk 0:02:56.7]} 4.
Qb3 {[%clk 0:02:59.2]} 4... Nc6 {[%clk 0:02:56.3]} 5. cxd5 {[%clk 0:02:48.5]}
5... Qxd5 {[%clk 0:02:18.9]} 6. Bc4 {[%clk 0:02:46.4]} 6... Qd7 {[%clk 0:02:07]}
7. Nc3 {[%clk 0:02:31.3]} 7... Na5 {[%clk 0:02:00.6]} 8. Bb5 {[%clk 0:02:06.8]}
8... Nxb3 {[%clk 0:01:52.9]} 9. Bxd7+ {[%clk 0:02:05.9]} 9... Kxd7 {[%clk
0:01:53.8]} 10. axb3 {[%clk 0:02:06.2]} 10... Bd6 {[%clk 0:01:46.6]} 11. e4
{[%clk 0:02:04.7]} 11... Bg6 {[%clk 0:01:46.1]} 12. d4 {[%clk 0:02:03.7]} 12...
Ne7 {[%clk 0:01:42.1]} 13. O-O {[%clk 0:01:52.5]} 13... Rhd8 {[%clk 0:01:37.7]}
14. Rd1 {[%clk 0:01:50.3]} 14... a6 {[%clk 0:01:36]} 15. Ne5+ {[%clk 0:01:40.5]}
15... Ke8 {[%clk 0:01:32.2]} 16. Be3 {[%clk 0:01:28.8]} 16... Bh5 {[%clk
0:01:21.6]} 17. f3 {[%clk 0:01:26.3]} 17... Rac8 {[%clk 0:01:16.9]} 18. Nc4
{[%clk 0:01:20.5]} 18... Bb4 {[%clk 0:01:16.8]} 19. Na2 {[%clk 0:01:09.8]} 19...
Bd6 {[%clk 0:01:11.5]} 20. e5 {[%clk 0:01:08.5]} 20... Nd5 {[%clk 0:01:08.4]}
21. exd6 {[%clk 0:01:05.9]} 21... b5 {[%clk 0:01:08.8]} 22. dxc7 {[%clk
0:00:31.5]} 22... Rxc7 {[%clk 0:01:07.4]} 23. Bg5 {[%clk 0:00:19.5]} 23... f6
{[%clk 0:01:02.4]} 24. Ne3 {[%clk 0:00:20]} 24... fxg5 {[%clk 0:00:58.9]} 25.
Nxd5 {[%clk 0:00:20.1]} 25... Rxd5 {[%clk 0:00:59.7]} 26. Nb4 {[%clk 0:00:20]}
26... Rd6 {[%clk 0:00:54]} 27. Rxa6 {[%clk 0:00:19.8]} 27... Rxa6 {[%clk
0:00:54.2]} 28. Nxa6 {[%clk 0:00:20.7]} 28... Rc2 {[%clk 0:00:55]} 29. Nc5
{[%clk 0:00:20.8]} 29... Ke7 {[%clk 0:00:51.9]} 30. Ra1 {[%clk 0:00:19.8]} 30...
Rxb2 {[%clk 0:00:45]} 31. Ra7+ {[%clk 0:00:20.3]} 31... Kf6 {[%clk 0:00:45.5]}
32. Ra6 {[%clk 0:00:18]} 32... Bf7 {[%clk 0:00:45.4]} 33. Ne4+ {[%clk 0:00:18]}
33... Kg6 {[%clk 0:00:44.5]} 34. d5 {[%clk 0:00:16.7]} 34... Kf5 {[%clk
0:00:26.2]} 35. dxe6 {[%clk 0:00:10.8]} 35... Bxe6 {[%clk 0:00:27.1]} 36. g4+
{[%clk 0:00:11]} 36... Ke5 {[%clk 0:00:27.3]} 37. Nxg5 {[%clk 0:00:07.6]} 37...
Bxb3 {[%clk 0:00:24.7]} 38. Ra7 {[%clk 0:00:03.6]} 38... Kf4 {[%clk 0:00:21]}
39. Rxg7 {[%clk 0:00:01.8]} 39... Bd5 {[%clk 0:00:18]} 0-1

[Event "Late-Titled-Tuesday-Blitz-March-26-2024"]
[Site "Chess.com"]
[Date "2024.03.26"]
[Round "2"]
[White "Msb2"]
[Black "chessablanca"]
[Result "0-1"]
[WhiteElo "3019"]
[BlackElo "2667"]
[TimeControl "180+1"]
[EndTime "14:18:59 PDT"]
[Termination "chessablanca won by checkmate"]

1. d4 {[%clk 0:03:00.9]} 1... Nf6 {[%clk 0:02:59.3]} 2. c4 {[%clk 0:03:01.6]}
2... e6 {[%clk 0:02:58.5]} 3. Nc3 {[%clk 0:03:02.3]} 3... Bb4 {[%clk 0:02:59.1]}
4. e3 {[%clk 0:03:02.7]} 4... O-O {[%clk 0:02:59.6]} 5. Bd2 {[%clk 0:03:03.3]}
5... d5 {[%clk 0:02:59.8]} 6. Nf3 {[%clk 0:03:03.6]} 6... Nbd7 {[%clk
0:02:59.9]} 7. a3 {[%clk 0:03:01.2]} 7... Be7 {[%clk 0:02:59.3]} 8. cxd5 {[%clk
0:03:01.8]} 8... exd5 {[%clk 0:02:59.4]} 9. Bd3 {[%clk 0:03:02.6]} 9... c6
{[%clk 0:02:59.8]} 10. Qc2 {[%clk 0:03:02.7]} 10... Re8 {[%clk 0:02:58.6]} 11.
Ne5 {[%clk 0:03:03.2]} 11... Nf8 {[%clk 0:02:56.3]} 12. O-O {[%clk 0:03:03.2]}
12... Ng6 {[%clk 0:02:38.8]} 13. f4 {[%clk 0:03:00.4]} 13... Bd6 {[%clk
0:02:22.6]} 14. Kh1 {[%clk 0:02:59.3]} 14... Bd7 {[%clk 0:02:16.1]} 15. Be1
{[%clk 0:02:57]} 15... c5 {[%clk 0:02:15.2]} 16. Bh4 {[%clk 0:02:55.4]} 16...
Nxh4 {[%clk 0:02:14.2]} 17. Nxd7 {[%clk 0:02:48.7]} 17... Qxd7 {[%clk
0:02:07.3]} 18. Bb5 {[%clk 0:02:48.8]} 18... Qf5 {[%clk 0:02:07.8]} 19. Qxf5
{[%clk 0:02:46.3]} 19... Nxf5 {[%clk 0:02:08.7]} 20. Bxe8 {[%clk 0:02:46.6]}
20... Rxe8 {[%clk 0:02:08.3]} 21. Nb5 {[%clk 0:02:38.1]} 21... c4 {[%clk
0:01:59]} 22. Rae1 {[%clk 0:02:03.1]} 22... a6 {[%clk 0:01:57.1]} 23. Nc3 {[%clk
0:02:03.5]} 23... b5 {[%clk 0:01:47.3]} 24. Nxd5 {[%clk 0:01:49.3]} 24... Nxd5
{[%clk 0:01:38.8]} 25. e4 {[%clk 0:01:49.8]} 25... Nxf4 {[%clk 0:01:15.2]} 26.
exf5 {[%clk 0:01:49.6]} 26... Rd8 {[%clk 0:01:11.5]} 27. Re3 {[%clk 0:01:39.7]}
27... Nd3 {[%clk 0:01:07.6]} 28. Re2 {[%clk 0:01:34.6]} 28... h5 {[%clk
0:01:04.9]} 29. g3 {[%clk 0:01:33.4]} 29... Bc7 {[%clk 0:01:03.6]} 30. f6 {[%clk
0:01:28]} 30... g6 {[%clk 0:01:00.5]} 31. d5 {[%clk 0:01:22.3]} 31... Be5 {[%clk
0:00:56.9]} 32. h3 {[%clk 0:01:06.8]} 32... Rxd5 {[%clk 0:00:56.9]} 33. g4
{[%clk 0:01:07.3]} 33... hxg4 {[%clk 0:00:47.1]} 34. hxg4 {[%clk 0:01:08.2]}
34... Nxb2 {[%clk 0:00:46]} 35. g5 {[%clk 0:01:06.4]} 35... c3 {[%clk
0:00:45.3]} 36. Rf3 {[%clk 0:00:58.4]} 36... Rd1+ {[%clk 0:00:42.8]} 37. Kg2
{[%clk 0:00:58.4]} 37... Nc4 {[%clk 0:00:40.5]} 38. Kf2 {[%clk 0:00:29.3]} 38...
Rd2 {[%clk 0:00:39.1]} 39. Rxd2 {[%clk 0:00:18.6]} 39... Nxd2 {[%clk 0:00:38.7]}
40. Rd3 {[%clk 0:00:18.8]} 40... c2 {[%clk 0:00:33.2]} 41. Rd8+ {[%clk
0:00:18.9]} 41... Kh7 {[%clk 0:00:32.9]} 42. Rc8 {[%clk 0:00:19.8]} 42... Nc4
{[%clk 0:00:32.2]} 43. Rf8 {[%clk 0:00:20.5]} 43... c1=Q {[%clk 0:00:30.8]} 44.
Rxf7+ {[%clk 0:00:20.8]} 44... Kg8 {[%clk 0:00:31.3]} 45. Rg7+ {[%clk
0:00:21.3]} 45... Kf8 {[%clk 0:00:31.9]} 46. Rxg6 {[%clk 0:00:21.9]} 46... Qf4+
{[%clk 0:00:31.6]} 47. Kg1 {[%clk 0:00:22.6]} 47... Qg3+ {[%clk 0:00:31.5]} 48.
Kf1 {[%clk 0:00:23.1]} 48... Qf3+ {[%clk 0:00:31.6]} 49. Kg1 {[%clk 0:00:23.8]}
49... Qg3+ {[%clk 0:00:32.1]} 50. Kf1 {[%clk 0:00:24.5]} 50... Qd3+ {[%clk
0:00:32.7]} 51. Kg2 {[%clk 0:00:23.9]} 51... Qxg6 {[%clk 0:00:33.6]} 52. Kf3
{[%clk 0:00:24.6]} 52... Qf5+ {[%clk 0:00:33.6]} 53. Ke2 {[%clk 0:00:24.8]}
53... Qe4+ {[%clk 0:00:33.9]} 54. Kf2 {[%clk 0:00:25.1]} 54... Bd4+ {[%clk
0:00:33.7]} 55. Kg3 {[%clk 0:00:25.3]} 55... Qe3+ {[%clk 0:00:33.5]} 56. Kg4
{[%clk 0:00:26.2]} 56... Qe4+ {[%clk 0:00:33.5]} 57. Kh5 {[%clk 0:00:26.8]}
57... Ne3 {[%clk 0:00:32.2]} 58. a4 {[%clk 0:00:26.6]} 58... Qh7# {[%clk
0:00:31.6]} 0-1

[Event "Late-Titled-Tuesday-Blitz-March-26-2024"]
[Site "Chess.com"]
[Date "2024.03.26"]
[Round "2"]
[White "Nemsko"]
[Black "Christian_Jordan"]
[Result "1-0"]
[WhiteElo "2431"]
[BlackElo "2052"]
[TimeControl "180+1"]
[EndTime "14:18:59 PDT"]
[Termination "Nemsko won by resignation"]

1. e4 {[%clk 0:03:00.9]} 1... e6 {[%clk 0:02:58.8]} 2. d4 {[%clk 0:03:00.8]}
2... d5 {[%clk 0:02:58.6]} 3. Nc3 {[%clk 0:03:00.9]} 3... Bb4 {[%clk 0:02:57.5]}
4. e5 {[%clk 0:02:59.7]} 4... c5 {[%clk 0:02:57.1]} 5. a3 {[%clk 0:03:00.3]}
5... Bxc3+ {[%clk 0:02:56.8]} 6. bxc3 {[%clk 0:03:01.2]} 6... Ne7 {[%clk
0:02:55.2]} 7. h4 {[%clk 0:03:01.7]} 7... Qa5 {[%clk 0:02:38.4]} 8. Bd2 {[%clk
0:03:01.2]} 8... Qa4 {[%clk 0:02:37]} 9. Nf3 {[%clk 0:03:01.5]} 9... b6 {[%clk
0:02:35.1]} 10. h5 {[%clk 0:03:00.4]} 10... h6 {[%clk 0:02:34.4]} 11. Rh4 {[%clk
0:02:59.7]} 11... Nf5 {[%clk 0:01:58.6]} 12. Rf4 {[%clk 0:02:59.4]} 12... cxd4
{[%clk 0:01:47.9]} 13. g4 {[%clk 0:02:51.7]} 13... Ne7 {[%clk 0:01:37.5]} 14.
Nxd4 {[%clk 0:02:40.4]} 14... Qd7 {[%clk 0:01:36.3]} 15. Qf3 {[%clk 0:02:38.7]}
15... O-O {[%clk 0:01:19.7]} 16. g5 {[%clk 0:02:34.1]} 16... hxg5 {[%clk
0:01:14.7]} 17. Rg4 {[%clk 0:02:33.7]} 17... f6 {[%clk 0:01:01.2]} 18. exf6
{[%clk 0:02:33.7]} 18... Rxf6 {[%clk 0:00:59.4]} 19. Qg2 {[%clk 0:02:14.7]}
19... e5 {[%clk 0:00:53.4]} 20. Rxg5 {[%clk 0:02:11]} 20... exd4 {[%clk
0:00:46.7]} 21. Rxg7+ {[%clk 0:02:11.1]} 21... Kf8 {[%clk 0:00:46.6]} 22. h6
{[%clk 0:02:01.2]} 22... Qe6+ {[%clk 0:00:46.4]} 23. Kd1 {[%clk 0:02:01.2]}
23... Rxh6 {[%clk 0:00:36.2]} 24. Bxh6 {[%clk 0:01:52.7]} 24... Qxh6 {[%clk
0:00:36.3]} 25. Rg5 {[%clk 0:01:35.5]} 25... Ba6 {[%clk 0:00:31.6]} 26. Bxa6
{[%clk 0:00:54.2]} 26... Nxa6 {[%clk 0:00:31.2]} 27. cxd4 {[%clk 0:00:55.1]}
27... Qf6 {[%clk 0:00:30.4]} 28. c3 {[%clk 0:00:53.1]} 28... Rc8 {[%clk
0:00:29.9]} 29. Rg3 {[%clk 0:00:41.7]} 29... Ke8 {[%clk 0:00:27.1]} 30. Kd2
{[%clk 0:00:34.4]} 30... Nc7 {[%clk 0:00:25.8]} 31. Re1 {[%clk 0:00:32.7]} 31...
Ne6 {[%clk 0:00:25.7]} 32. Rge3 {[%clk 0:00:32.3]} 32... Qf4 {[%clk 0:00:23.3]}
33. Kd1 {[%clk 0:00:22.6]} 33... Rc6 {[%clk 0:00:22.7]} 34. Rxe6 {[%clk
0:00:19.9]} 34... Rxe6 {[%clk 0:00:21.6]} 35. Rxe6 {[%clk 0:00:20.8]} 35... Qf7
{[%clk 0:00:19]} 36. Qxd5 {[%clk 0:00:14.2]} 36... Kf8 {[%clk 0:00:16.3]} 37.
Qe5 {[%clk 0:00:12.4]} 37... Qf3+ {[%clk 0:00:14]} 38. Ke1 {[%clk 0:00:10.2]}
38... Qxc3+ {[%clk 0:00:13.3]} 39. Kf1 {[%clk 0:00:10.6]} 39... Qc1+ {[%clk
0:00:12.2]} 40. Kg2 {[%clk 0:00:10.2]} 1-0

[Event "Late-Titled-Tuesday-Blitz-March-26-2024"]
[Site "Chess.com"]
[Date "2024.03.26"]
[Round "2"]
[White "MITerryble"]
[Black "Shahdad2007"]
[Result "1-0"]
[WhiteElo "2995"]
[BlackElo "2631"]
[TimeControl "180+1"]
[EndTime "14:19:03 PDT"]
[Termination "MITerryble won on time"]

1. d4 {[%clk 0:03:00.9]} 1... Nf6 {[%clk 0:02:56.4]} 2. Bg5 {[%clk 0:02:46.2]}
2... g6 {[%clk 0:02:33.1]} 3. c3 {[%clk 0:02:44.9]} 3... Bg7 {[%clk 0:02:32.2]}
4. Nd2 {[%clk 0:02:40.4]} 4... O-O {[%clk 0:02:24.7]} 5. e4 {[%clk 0:02:40.3]}
5... d6 {[%clk 0:02:24.8]} 6. Ngf3 {[%clk 0:02:39.8]} 6... c5 {[%clk 0:02:22.8]}
7. dxc5 {[%clk 0:02:39.7]} 7... dxc5 {[%clk 0:02:22.1]} 8. Bc4 {[%clk
0:02:40.2]} 8... Nc6 {[%clk 0:02:20.5]} 9. Qe2 {[%clk 0:02:40.3]} 9... Bg4
{[%clk 0:02:01.4]} 10. h3 {[%clk 0:02:36.8]} 10... Bxf3 {[%clk 0:01:59.1]} 11.
Nxf3 {[%clk 0:02:37.7]} 11... Nd7 {[%clk 0:01:56.3]} 12. Rd1 {[%clk 0:02:33.5]}
12... Qc7 {[%clk 0:01:55]} 13. O-O {[%clk 0:02:29.1]} 13... Nde5 {[%clk
0:01:50]} 14. Nxe5 {[%clk 0:02:06.2]} 14... Nxe5 {[%clk 0:01:48.1]} 15. Bd5
{[%clk 0:01:33.8]} 15... Rfd8 {[%clk 0:01:35.2]} 16. f4 {[%clk 0:01:31.5]} 16...
Nc6 {[%clk 0:01:28]} 17. e5 {[%clk 0:01:29.7]} 17... a6 {[%clk 0:00:44.2]} 18.
Qc4 {[%clk 0:01:23]} 18... Rf8 {[%clk 0:00:42.2]} 19. Qxc5 {[%clk 0:01:22.6]}
19... h6 {[%clk 0:00:39]} 20. Bh4 {[%clk 0:01:19.8]} 20... g5 {[%clk 0:00:32.6]}
21. Bg3 {[%clk 0:00:51.1]} 21... e6 {[%clk 0:00:30.3]} 22. Be4 {[%clk
0:00:46.6]} 22... Rad8 {[%clk 0:00:23.4]} 23. Rd6 {[%clk 0:00:43]} 23... Rxd6
{[%clk 0:00:15.5]} 24. exd6 {[%clk 0:00:43.9]} 24... Qd7 {[%clk 0:00:14.9]} 25.
fxg5 {[%clk 0:00:44.3]} 25... hxg5 {[%clk 0:00:13.7]} 26. Qxg5 {[%clk
0:00:45.2]} 26... f5 {[%clk 0:00:13.9]} 27. Bxc6 {[%clk 0:00:38]} 27... Qxc6
{[%clk 0:00:13.1]} 28. Be5 {[%clk 0:00:37.5]} 28... Rf7 {[%clk 0:00:12.3]} 29.
Rd1 {[%clk 0:00:37.3]} 29... Qc5+ {[%clk 0:00:11]} 30. Kh1 {[%clk 0:00:31.8]}
30... Qxe5 {[%clk 0:00:10.2]} 31. d7 {[%clk 0:00:32.3]} 31... Rxd7 {[%clk
0:00:05.4]} 32. Rxd7 {[%clk 0:00:33.2]} 32... Qe1+ {[%clk 0:00:05.3]} 33. Kh2
{[%clk 0:00:33.7]} 33... Qe5+ {[%clk 0:00:05.1]} 34. Qg3 {[%clk 0:00:34]} 34...
Kf8 {[%clk 0:00:04.7]} 35. Rxb7 {[%clk 0:00:30]} 35... f4 {[%clk 0:00:03.4]} 36.
Qxg7+ {[%clk 0:00:29.7]} 36... Qxg7 {[%clk 0:00:03.5]} 37. Rxg7 {[%clk
0:00:30.6]} 37... Kxg7 {[%clk 0:00:03.9]} 38. Kg1 {[%clk 0:00:25.9]} 38... e5
{[%clk 0:00:04.1]} 39. Kf2 {[%clk 0:00:26.2]} 39... e4 {[%clk 0:00:04.6]} 40. c4
{[%clk 0:00:26.7]} 40... Kf6 {[%clk 0:00:04.9]} 41. c5 {[%clk 0:00:27.3]} 41...
Ke5 {[%clk 0:00:05.4]} 42. h4 {[%clk 0:00:27.8]} 42... Kd4 {[%clk 0:00:03.9]}
43. c6 {[%clk 0:00:27.5]} 43... Kd3 {[%clk 0:00:04.5]} 44. Ke1 {[%clk
0:00:27.4]} 1-0

[Event "Late-Titled-Tuesday-Blitz-March-26-2024"]
[Site "Chess.com"]
[Date "2024.03.26"]
[Round "2"]
[White "FabianoCaruana"]
[Black "RandomNoob04"]
[Result "1-0"]
[WhiteElo "3098"]
[BlackElo "2676"]
[TimeControl "180+1"]
[EndTime "14:19:05 PDT"]
[Termination "FabianoCaruana won on time"]

1. c4 {[%clk 0:03:00.9]} 1... Nf6 {[%clk 0:02:58.7]} 2. Nc3 {[%clk 0:03:00.3]}
2... e6 {[%clk 0:02:58.6]} 3. d4 {[%clk 0:02:59.3]} 3... d5 {[%clk 0:02:56.3]}
4. cxd5 {[%clk 0:02:58.9]} 4... exd5 {[%clk 0:02:57.2]} 5. Bg5 {[%clk
0:02:57.4]} 5... c6 {[%clk 0:02:57.4]} 6. Qc2 {[%clk 0:02:55.4]} 6... Be7 {[%clk
0:02:55.1]} 7. e3 {[%clk 0:02:55.2]} 7... O-O {[%clk 0:02:55.3]} 8. Bd3 {[%clk
0:02:54.5]} 8... Nbd7 {[%clk 0:02:55.5]} 9. Nge2 {[%clk 0:02:53.2]} 9... Re8
{[%clk 0:02:55]} 10. O-O {[%clk 0:02:52.9]} 10... Nf8 {[%clk 0:02:54.2]} 11.
Rae1 {[%clk 0:02:52.2]} 11... Be6 {[%clk 0:02:53.3]} 12. f3 {[%clk 0:02:44.1]}
12... Rc8 {[%clk 0:02:47]} 13. Nf4 {[%clk 0:02:40.2]} 13... h6 {[%clk
0:02:29.3]} 14. Bh4 {[%clk 0:02:36.8]} 14... c5 {[%clk 0:02:18]} 15. Qd2 {[%clk
0:02:22.5]} 15... cxd4 {[%clk 0:02:08.9]} 16. exd4 {[%clk 0:02:23.4]} 16... Ne4
{[%clk 0:01:55.9]} 17. fxe4 {[%clk 0:02:16.4]} 17... Bxh4 {[%clk 0:01:56.5]} 18.
g3 {[%clk 0:02:13.1]} 18... dxe4 {[%clk 0:01:57.1]} 19. Bxe4 {[%clk 0:02:09.9]}
19... Bf6 {[%clk 0:01:48.3]} 20. Rd1 {[%clk 0:02:04.3]} 20... Bg4 {[%clk
0:01:40.7]} 21. Bf3 {[%clk 0:02:04.3]} 21... Bxf3 {[%clk 0:01:36.7]} 22. Rxf3
{[%clk 0:02:05.2]} 22... Ne6 {[%clk 0:01:27.4]} 23. Nxe6 {[%clk 0:02:01.9]}
23... Rxe6 {[%clk 0:01:28.3]} 24. Kg2 {[%clk 0:01:57.7]} 24... Rd6 {[%clk
0:01:21.4]} 25. Ne4 {[%clk 0:01:53.2]} 25... Rdc6 {[%clk 0:01:13]} 26. Nxf6+
{[%clk 0:01:42.3]} 26... Rxf6 {[%clk 0:01:13.9]} 27. Rxf6 {[%clk 0:01:39]} 27...
Qxf6 {[%clk 0:01:14.8]} 28. d5 {[%clk 0:01:39.1]} 28... Qf5 {[%clk 0:01:05.7]}
29. Qd4 {[%clk 0:01:10.4]} 29... Rc2+ {[%clk 0:00:59.4]} 30. Rd2 {[%clk
0:01:10.7]} 30... Rxd2+ {[%clk 0:00:19.8]} 31. Qxd2 {[%clk 0:01:10.8]} 31... Qd7
{[%clk 0:00:19.8]} 32. Qd4 {[%clk 0:01:04.3]} 32... Qd6 {[%clk 0:00:17.3]} 33.
Kf2 {[%clk 0:01:00.8]} 33... Kf8 {[%clk 0:00:14.5]} 34. Ke3 {[%clk 0:01:01.2]}
34... b6 {[%clk 0:00:13.9]} 35. Kd3 {[%clk 0:01:00.1]} 35... f6 {[%clk
0:00:13.4]} 36. Kc4 {[%clk 0:00:58.7]} 36... a6 {[%clk 0:00:13.8]} 37. Kd3
{[%clk 0:00:57.7]} 37... Ke7 {[%clk 0:00:13.2]} 38. Qe4+ {[%clk 0:00:54.1]}
38... Kd7 {[%clk 0:00:12.1]} 39. Qf5+ {[%clk 0:00:50.1]} 39... Kd8 {[%clk
0:00:11.5]} 40. Ke3 {[%clk 0:00:45.9]} 40... Ke7 {[%clk 0:00:10.6]} 41. Kf3
{[%clk 0:00:42.9]} 41... Qe5 {[%clk 0:00:05.1]} 42. Qxe5+ {[%clk 0:00:37]} 42...
fxe5 {[%clk 0:00:06]} 43. Ke4 {[%clk 0:00:37.6]} 43... Kd6 {[%clk 0:00:06.6]}
44. g4 {[%clk 0:00:24.8]} 44... g6 {[%clk 0:00:05]} 45. h4 {[%clk 0:00:21.4]}
45... b5 {[%clk 0:00:02.6]} 46. b4 {[%clk 0:00:21]} 1-0

[Event "Late-Titled-Tuesday-Blitz-March-26-2024"]
[Site "Chess.com"]
[Date "2024.03.26"]
[Round "2"]
[White "sorch29"]
[Black "PawnEatingZombie"]
[Result "1-0"]
[WhiteElo "2453"]
[BlackElo "2175"]
[TimeControl "180+1"]
[EndTime "14:19:05 PDT"]
[Termination "sorch29 won on time"]

1. c4 {[%clk 0:02:56.6]} 1... Nf6 {[%clk 0:02:58.3]} 2. Nc3 {[%clk 0:02:56.1]}
2... g6 {[%clk 0:02:58.8]} 3. e4 {[%clk 0:02:56.2]} 3... d6 {[%clk 0:02:59]} 4.
g3 {[%clk 0:02:55.8]} 4... Bg7 {[%clk 0:02:59.5]} 5. Bg2 {[%clk 0:02:56.2]} 5...
O-O {[%clk 0:02:59.7]} 6. Nge2 {[%clk 0:02:56.9]} 6... Nc6 {[%clk 0:02:58.7]} 7.
O-O {[%clk 0:02:55.4]} 7... e5 {[%clk 0:02:55]} 8. d3 {[%clk 0:02:55.7]} 8...
Nh5 {[%clk 0:02:45.7]} 9. h3 {[%clk 0:02:51.9]} 9... h6 {[%clk 0:02:42.8]} 10.
Be3 {[%clk 0:02:50.7]} 10... f5 {[%clk 0:02:34.1]} 11. exf5 {[%clk 0:02:50.5]}
11... gxf5 {[%clk 0:02:33.7]} 12. Nd5 {[%clk 0:02:36.6]} 12... f4 {[%clk
0:02:12.2]} 13. gxf4 {[%clk 0:02:35.4]} 13... exf4 {[%clk 0:02:09.9]} 14. Nexf4
{[%clk 0:02:35.2]} 14... Nxf4 {[%clk 0:02:10]} 15. Nxf4 {[%clk 0:02:28.3]} 15...
Ne5 {[%clk 0:01:22]} 16. Nh5 {[%clk 0:02:25]} 16... Qh4 {[%clk 0:01:11.6]} 17.
Nxg7 {[%clk 0:01:37.7]} 17... Kxg7 {[%clk 0:01:12.5]} 18. f4 {[%clk 0:01:37.2]}
18... Bxh3 {[%clk 0:00:34.1]} 19. fxe5 {[%clk 0:01:35.6]} 19... Bxg2 {[%clk
0:00:26.5]} 20. Kxg2 {[%clk 0:01:35.3]} 20... Rxf1 {[%clk 0:00:20.4]} 21. Qxf1
{[%clk 0:01:27.7]} 21... Qg4+ {[%clk 0:00:13.9]} 22. Kh1 {[%clk 0:01:26.8]}
22... Qh4+ {[%clk 0:00:09]} 23. Kg1 {[%clk 0:01:25.9]} 23... Rf8 {[%clk
0:00:05.4]} 24. Bf2 {[%clk 0:01:05.7]} 24... Qh5 {[%clk 0:00:04]} 25. Qg2+
{[%clk 0:00:54.9]} 25... Kh8 {[%clk 0:00:03.8]} 26. exd6 {[%clk 0:00:55.3]}
26... Rg8 {[%clk 0:00:03.9]} 27. Bd4+ {[%clk 0:00:55.1]} 27... Kh7 {[%clk
0:00:03.5]} 28. dxc7 {[%clk 0:00:50.2]} 28... Rxg2+ {[%clk 0:00:02.6]} 29. Kxg2
{[%clk 0:00:51.1]} 29... Qg4+ {[%clk 0:00:03]} 30. Kf1 {[%clk 0:00:50.2]} 30...
Qf4+ {[%clk 0:00:02]} 31. Ke2 {[%clk 0:00:49.7]} 31... Qxc7 {[%clk 0:00:02.8]}
32. Rg1 {[%clk 0:00:36.8]} 32... Qh2+ {[%clk 0:00:03.3]} 33. Kd1 {[%clk
0:00:28.4]} 33... h5 {[%clk 0:00:02.3]} 34. Rg7+ {[%clk 0:00:21.9]} 34... Kh6
{[%clk 0:00:02.1]} 35. Bc3 {[%clk 0:00:22.6]} 35... Qh1+ {[%clk 0:00:01.7]} 36.
Kc2 {[%clk 0:00:22.7]} 36... Qh2+ {[%clk 0:00:01.5]} 37. Kb3 {[%clk 0:00:23.4]}
37... Qe2 {[%clk 0:00:01.6]} 38. Rxb7 {[%clk 0:00:22.4]} 38... Qxd3 {[%clk
0:00:01.7]} 39. Rxa7 {[%clk 0:00:22.8]} 39... Qd1+ {[%clk 0:00:01.9]} 40. Ka3
{[%clk 0:00:22.9]} 40... h4 {[%clk 0:00:02.3]} 41. Ra6+ {[%clk 0:00:19.6]} 41...
Kh5 {[%clk 0:00:02.1]} 42. c5 {[%clk 0:00:18.8]} 42... h3 {[%clk 0:00:02.3]} 43.
Ra8 {[%clk 0:00:17.6]} 1-0

[Event "Late-Titled-Tuesday-Blitz-March-26-2024"]
[Site "Chess.com"]
[Date "2024.03.26"]
[Round "2"]
[White "a_kandil"]
[Black "dealshark"]
[Result "1-0"]
[WhiteElo "2511"]
[BlackElo "2282"]
[TimeControl "180+1"]
[EndTime "14:19:06 PDT"]
[Termination "a_kandil won by checkmate"]

1. e4 {[%clk 0:03:00.2]} 1... c6 {[%clk 0:03:00]} 2. d4 {[%clk 0:02:55.9]} 2...
d5 {[%clk 0:03:00.9]} 3. exd5 {[%clk 0:02:56.8]} 3... cxd5 {[%clk 0:03:01.3]} 4.
c4 {[%clk 0:02:57.7]} 4... Nc6 {[%clk 0:03:01.9]} 5. Nc3 {[%clk 0:02:58.3]} 5...
Nf6 {[%clk 0:03:02.3]} 6. Bg5 {[%clk 0:02:58.1]} 6... dxc4 {[%clk 0:03:01.2]} 7.
Bxc4 {[%clk 0:02:56.5]} 7... h6 {[%clk 0:02:54.9]} 8. Bxf6 {[%clk 0:02:53]} 8...
exf6 {[%clk 0:02:54.5]} 9. Qb3 {[%clk 0:02:01.7]} 9... Qe7+ {[%clk 0:02:41]} 10.
Nge2 {[%clk 0:01:57.6]} 10... Nxd4 {[%clk 0:02:36.1]} 11. Bb5+ {[%clk
0:01:24.8]} 11... Bd7 {[%clk 0:02:33.8]} 12. Bxd7+ {[%clk 0:01:17.2]} 12... Qxd7
{[%clk 0:02:27.3]} 13. Nxd4 {[%clk 0:01:17.3]} 13... Qxd4 {[%clk 0:02:24.8]} 14.
O-O {[%clk 0:01:17.6]} 14... O-O-O {[%clk 0:01:58.2]} 15. Rfd1 {[%clk
0:00:59.2]} 15... Qb6 {[%clk 0:01:57.8]} 16. Rxd8+ {[%clk 0:00:56.7]} 16... Qxd8
{[%clk 0:01:50]} 17. Nb5 {[%clk 0:00:51.9]} 17... Bc5 {[%clk 0:01:44.9]} 18. Rc1
{[%clk 0:00:48.4]} 18... b6 {[%clk 0:01:13.6]} 19. Qf3 {[%clk 0:00:21.8]} 19...
Kb8 {[%clk 0:01:02.8]} 20. Qf4+ {[%clk 0:00:21.9]} 20... Kb7 {[%clk 0:00:52.9]}
21. b4 {[%clk 0:00:21.6]} 21... Qd7 {[%clk 0:00:20.4]} 22. Qe4+ {[%clk
0:00:17.1]} 22... Ka6 {[%clk 0:00:12.4]} 23. bxc5 {[%clk 0:00:16.4]} 23... Qxb5
{[%clk 0:00:12.2]} 24. c6 {[%clk 0:00:16.7]} 24... Rc8 {[%clk 0:00:11.7]} 25. h3
{[%clk 0:00:16.5]} 25... Qe5 {[%clk 0:00:09.4]} 26. Qd3+ {[%clk 0:00:14.8]}
26... b5 {[%clk 0:00:09.1]} 27. Qd7 {[%clk 0:00:14.9]} 27... Qc7 {[%clk
0:00:09.3]} 28. Qd3 {[%clk 0:00:13]} 28... Kb6 {[%clk 0:00:09.1]} 29. Qd4+
{[%clk 0:00:13.2]} 29... Ka6 {[%clk 0:00:09.3]} 30. Qc5 {[%clk 0:00:13.6]} 30...
Qb6 {[%clk 0:00:09.5]} 31. Qa3+ {[%clk 0:00:13.1]} 31... Qa5 {[%clk 0:00:10.2]}
32. Qe7 {[%clk 0:00:13.2]} 32... Qc7 {[%clk 0:00:10.3]} 33. Qb4 {[%clk
0:00:13.3]} 33... Qa5 {[%clk 0:00:10.4]} 34. Qe4 {[%clk 0:00:13.2]} 34... Qb6
{[%clk 0:00:09.2]} 35. Rc3 {[%clk 0:00:13.1]} 35... Qa5 {[%clk 0:00:07.8]} 36.
Qe3 {[%clk 0:00:12.8]} 36... b4 {[%clk 0:00:07.5]} 37. Rc5 {[%clk 0:00:12.8]}
37... Qb6 {[%clk 0:00:07.7]} 38. Qd3+ {[%clk 0:00:12.7]} 38... Qb5 {[%clk
0:00:06.9]} 39. Qxb5# {[%clk 0:00:13]} 1-0